bitfinex-derivatives/quotes_ETHF0:USTF0_20250817
["timestamp","ask_amount","ask_price","bid_price","bid_amount"]
[1755415349843,4.6582,4471.0,4470.9,1.4333]
[1755415350041,4.6582,4471.0,4470.9,1.1816]
[1755415353248,1.4504,4470.5,4470.4,3.2078]
[1755415354046,1.4504,4470.5,4470.4,3.8231]
[1755415354349,1.4504,4470.5,4470.4,4.3894]
[1755415356151,2.10011032,4470.5,4470.4,4.3894]
[1755415356947,2.10011032,4470.5,4470.4,4.148]
[1755415357147,2.10011032,4470.5,4470.4,3.4491]
[1755415357347,2.10011032,4470.5,4470.4,3.2078]
[1755415357543,1.23231032,4470.5,4469.7,3.8232]
[1755415357748,1.4504,4469.8,4469.7,3.5818]
[1755415357950,2.10011032,4469.8,4469.7,4.3894]
[1755415358250,1.4504,4469.8,4469.7,4.3894]
[1755415358457,1.4504,4469.8,4469.7,4.6411]
[1755415359251,1.4504,4469.8,4469.7,4.3894]
[1755415360547,0.2379,4470.4,4469.7,4.3894]
[1755415360754,1.4504,4470.2,4470.1,0.5662]
[1755415360948,2.29613588,4470.2,4470.1,1.1816]
[1755415361144,0.5826,4469.9,4469.8,1.1816]
[1755415361450,1.4504,4469.9,4469.8,1.1816]
[1755415363150,1.4504,4469.9,4469.8,0.2413]
[1755415363652,1.4504,4469.9,4469.8,0.6153]
[1755415364052,0.8249,4469.9,4469.8,1.4333]
[1755415364446,1.1911,4469.9,4469.8,1.4333]
[1755415364648,1.4504,4469.9,4469.8,1.4333]
[1755415365857,1.4504,4469.9,4469.8,1.1816]
[1755415372655,1.4504,4469.9,4469.8,1.4298]
[1755415373362,1.4504,4469.9,4469.8,1.1816]
[1755415374961,1.4504,4469.9,4469.8,21.5986]
[1755415379760,0.5093,4470.4,4469.9,0.3944]
[1755415379964,1.4744,4470.4,4470.3,0.5831]
[1755415380264,1.4744,4470.4,4470.3,1.4782]
[1755415380766,0.8241,4470.4,4470.3,4.686]
[1755415381159,1.0794,4470.4,4470.3,4.686]
[1755415381856,0.254,4470.4,4470.3,4.686]
[1755415382167,0.9651,4471.0,4470.9,0.5831]
[1755415382365,1.8078456,4471.0,4470.9,1.23]
[1755415382661,2.3171456,4471.0,4470.9,1.23]
[1755415382964,1.66818876,4471.0,4470.9,1.23]
[1755415383168,1.4744,4471.0,4470.9,1.23]
[1755415383361,1.4744,4471.0,4470.9,0.9775]
[1755415383664,1.4744,4471.0,4470.9,0.6492]
[1755415385060,1.4744,4471.0,4470.9,0.9017]
[1755415385267,1.4744,4471.0,4470.9,1.23]
[1755415387671,1.4744,4471.0,4470.6,0.3944]
[1755415387868,0.1588,4470.8,4470.7,20.412]
[1755415388171,1.4744,4470.8,4470.7,20.412]
[1755415388672,0.3221,4470.5,4470.4,0.7227]
[1755415388874,0.5701,4470.5,4470.4,21.3895]
[1755415389373,1.4744,4470.5,4470.4,21.642]
[1755415392864,0.2553,4471.0,4470.5,0.6469]
[1755415393068,1.4744,4471.0,4470.9,1.23]
[1755415393273,2.31671264,4471.0,4470.9,21.64]
[1755415393879,1.4744,4471.0,4470.9,21.64]
[1755415394073,1.4744,4471.0,4470.9,21.8882]
[1755415394972,1.4744,4471.0,4470.9,21.64]
[1755415396768,1.0794,4471.0,4470.9,21.64]
[1755415396973,0.4128,4471.0,4470.9,21.8882]
[1755415397176,1.0794,4471.0,4470.9,21.8882]
[1755415397374,1.4744,4471.0,4470.9,21.8882]
[1755415399877,1.4744,4471.0,4470.9,21.64]
[1755415403177,1.67132958,4471.0,4470.9,21.637]
[1755415404278,1.41732958,4471.0,4470.9,20.407]
[1755415404579,0.5768,4470.7,4470.6,0.6653]
[1755415404882,1.4255,4470.7,4470.6,21.2419]
[1755415405082,1.4255,4470.7,4470.6,21.2409]
[1755415405381,1.4255,4470.7,4470.6,21.6011]
[1755415406376,1.4255,4470.7,4470.6,21.8533]
[1755415408682,1.4255,4470.7,4470.6,21.6011]
[1755415409486,1.4255,4470.7,4470.6,21.8523]
[1755415409875,1.4255,4470.7,4470.6,1.1951]
[1755415410080,1.4255,4470.7,4470.6,21.6001]
[1755415410289,1.4255,4470.7,4470.6,1.4473]
[1755415410486,0.653,4470.7,4470.6,21.8523]
[1755415410882,0.653,4470.7,4470.6,1.4473]
[1755415411084,0.4035,4470.7,4470.6,0.9349]
[1755415411288,1.4255,4470.7,4470.6,21.8523]
[1755415413585,1.4255,4470.7,4470.6,21.6001]
[1755415413790,1.4255,4470.7,4470.6,21.5991]
[1755415414290,1.4255,4470.7,4470.6,1.1951]
[1755415414485,1.4255,4470.7,4470.6,21.5991]
[1755415414885,1.4255,4470.7,4470.6,1.4473]
[1755415415289,1.4255,4470.7,4470.6,21.8503]
[1755415415482,1.4255,4470.7,4470.6,1.1951]
[1755415415682,1.4255,4470.7,4470.6,0.2465]
[1755415415887,1.4255,4470.7,4470.6,21.0097]
[1755415416291,1.4255,4470.7,4470.6,0.8669]
[1755415416585,1.4255,4470.7,4470.6,21.2699]
[1755415416790,0.9255,4470.7,4470.6,0.8669]
[1755415416986,1.0883,4470.7,4470.6,1.4513]
[1755415417189,0.5928,4470.7,4470.6,1.4513]
[1755415417388,0.7515,4470.7,4470.6,21.8543]
[1755415417691,0.7515,4470.7,4470.6,1.4513]
[1755415417891,0.7515,4470.7,4470.6,21.8543]
[1755415418291,0.7515,4470.7,4470.6,1.4513]
[1755415418594,0.7515,4470.7,4470.6,21.8543]
[1755415418891,0.9922,4470.7,4470.6,1.4513]
[1755415419091,0.9922,4470.7,4470.6,21.8533]
[1755415419290,1.2417,4470.7,4470.6,21.8533]
[1755415420495,0.7515,4470.7,4470.6,21.8533]
[1755415420689,1.001,4470.7,4470.6,21.8533]
[1755415420987,0.5928,4470.7,4470.6,21.8533]
[1755415421887,0.8423,4470.7,4470.6,21.8533]
[1755415422494,0.8423,4470.7,4470.6,1.4513]
[1755415422688,0.8423,4470.7,4470.6,21.8523]
[1755415423993,1.001,4470.7,4470.6,21.8523]
[1755415424193,1.2417,4470.7,4470.6,21.8523]
[1755415426393,1.2417,4470.7,4470.6,20.9757]
[1755415426592,1.2417,4470.7,4470.6,21.4921]
[1755415426892,1.2417,4470.7,4470.6,21.8523]
[1755415427092,1.2417,4470.7,4470.6,1.4513]
[1755415427291,1.2417,4470.7,4470.6,21.8513]
[1755415430711,1.001,4470.7,4470.6,21.8513]
[1755415431208,0.501,4470.7,4470.6,21.8513]
[1755415432615,0.4452566,4470.7,4470.3,3.2078]
[1755415432807,0.7886,4470.4,4470.3,4.6519]
[1755415433014,0.7886,4470.4,4470.3,25.0499]
[1755415433311,0.9206,4470.4,4470.3,25.0499]
[1755415435615,1.1835,4471.2,4471.1,0.5941]
[1755415435911,2.03143569,4471.2,4471.1,1.4441]
[1755415440117,1.76853569,4471.2,4471.1,1.4441]
[1755415440318,2.03143569,4471.2,4471.1,1.4441]
[1755415441224,1.17843569,4471.2,4471.1,1.4441]
[1755415441526,1.55743569,4471.2,4471.1,1.4441]
[1755415442119,1.35919971,4471.2,4471.1,1.4441]
[1755415442328,1.55742803,4471.2,4471.1,1.4441]
[1755415442827,1.55742655,4471.2,4471.1,1.4441]
[1755415443127,0.19822684,4471.2,4471.1,1.4441]
[1755415443334,0.379,4472.0,4471.2,0.2506]
[1755415443529,1.1835,4472.0,4471.9,1.4441]
[1755415443727,1.89892028,4472.0,4471.8,20.394]
[1755415443931,2.03092028,4471.9,4471.8,21.8381]
[1755415445430,0.84742028,4471.9,4471.8,21.8381]
[1755415445730,1.01162028,4471.9,4471.8,21.8381]
[1755415446028,1.55692028,4471.9,4471.8,21.8381]
[1755415447233,1.01162028,4471.9,4471.8,21.8381]
[1755415447543,3.2078,4472.4,4471.8,20.9881]
[1755415447836,1.11841927,4472.3,4472.2,1.4441]
[1755415448129,0.19781927,4472.3,4472.2,21.8351]
[1755415448334,0.2962,4472.3,4472.2,21.8351]
[1755415448723,0.7095,4472.3,4472.2,21.8351]
[1755415452130,0.9206,4472.3,4472.2,21.8351]
[1755415452334,1.1835,4472.3,4472.2,21.8351]
[1755415454634,1.1835,4472.3,4472.2,1.4441]
[1755415454832,1.1835,4472.3,4472.2,21.8301]
[1755415455128,1.1835,4472.3,4472.0,0.3612]
[1755415455336,1.1835,4472.0,4471.9,20.8738]
[1755415455536,1.1835,4472.0,4471.9,1.023]
[1755415455738,1.1835,4472.0,4471.9,1.2736]
[1755415456039,1.1835,4472.0,4471.9,1.4441]
[1755415456429,1.1835,4471.5,4471.4,0.4888]
[1755415456630,1.1835,4471.5,4471.4,21.8291]
[1755415457631,1.1841,4471.5,4471.4,21.8298]
[1755415457829,0.391,4471.8,4471.5,0.8617]
[1755415458038,0.9455,4471.8,4471.7,1.4298]
[1755415459035,1.209,4471.8,4471.7,1.4298]
[1755415460740,0.3012,4471.9,4471.8,1.2622]
[1755415460939,0.7347,4471.9,4471.8,1.4298]
[1755415461243,0.5545,4471.6,4471.5,1.4298]
[1755415461441,1.209,4471.6,4471.5,21.8138]
[1755415465038,1.209,4471.6,4471.5,1.4298]
[1755415465941,1.209,4471.6,4471.5,21.8128]
[1755415466434,0.9455,4471.6,4471.5,21.8128]
[1755415466641,1.209,4471.6,4471.5,21.8128]
[1755415467637,0.9455,4471.6,4471.5,21.8128]
[1755415468842,0.391,4472.3,4471.5,20.9511]
[1755415469036,1.78946935,4472.2,4472.1,1.1858]
[1755415469344,2.05296935,4472.2,4472.1,1.4298]
[1755415469733,1.85711855,4472.2,4472.1,1.4298]
[1755415469942,2.05300679,4472.2,4472.1,1.4298]
[1755415470343,2.05300059,4472.2,4472.1,1.4298]
[1755415470545,2.05300691,4472.2,4472.1,1.4298]
[1755415471347,1.31940691,4472.2,4472.1,1.4298]
[1755415472547,0.84400691,4472.2,4472.1,1.4298]
[1755415472749,0.19588836,4472.2,4472.1,1.4298]
[1755415472937,0.19598457,4472.2,4472.1,1.4298]
[1755415473643,3.2078,4472.4,4472.1,1.4298]
[1755415473947,0.19597564,4472.3,4472.2,20.9491]
[1755415474449,0.19597564,4472.3,4472.2,21.8108]
[1755415474844,0.2635,4472.8,4472.2,20.9491]
[1755415475042,0.391,4472.5,4472.3,0.8617]
[1755415475243,0.5605,4472.5,4472.4,1.4298]
[1755415475438,0.84393706,4472.5,4472.4,1.4298]
[1755415475844,1.01343706,4472.5,4472.4,1.4298]
[1755415476048,2.05293706,4472.5,4471.8,3.2078]
[1755415476250,1.209,4472.0,4471.9,21.8088]
[1755415476449,1.209,4472.0,4471.9,1.4298]
[1755415476649,2.05303079,4472.0,4471.9,1.4298]
[1755415477644,1.55303079,4472.0,4471.9,1.4298]
[1755415478053,0.2635,4471.9,4471.5,20.379]
[1755415478251,0.1695,4471.6,4471.5,21.3185]
[1755415478452,0.433,4471.6,4471.5,21.3185]
[1755415478952,0.433,4471.6,4471.5,21.8088]
[1755415482149,0.2635,4472.3,4471.5,20.9471]
[1755415482353,1.27722358,4472.2,4472.1,1.4298]
[1755415484855,1.08119642,4472.2,4472.1,1.4298]
[1755415485157,1.27726657,4472.2,4472.1,1.4298]
[1755415488057,1.08119642,4472.2,4472.1,1.4298]
[1755415488257,1.27727812,4472.2,4472.1,1.4298]
[1755415489059,0.84427812,4472.2,4472.1,1.447]
[1755415489659,1.00707812,4472.2,4472.1,1.447]
[1755415491162,1.00562377,4472.2,4472.1,1.447]
[1755415495072,1.24772377,4472.2,4472.1,1.447]
[1755415497277,1.05309642,4472.2,4472.1,1.447]
[1755415497466,1.24773054,4472.2,4472.1,1.447]
[1755415500774,1.00563054,4472.2,4472.1,1.0628]
[1755415500969,1.00563054,4472.2,4471.4,0.8912]
[1755415501174,0.1628,4471.5,4471.4,1.4912]
[1755415501375,0.4049,4472.3,4472.2,0.4262]
[1755415501568,1.24795995,4472.3,4472.2,1.2326]
[1755415501770,1.24795995,4472.3,4472.2,1.4912]
[1755415505481,1.24803,4472.3,4472.2,1.4912]
[1755415508179,1.00593,4472.3,4472.2,1.4912]
[1755415510677,1.24803,4472.3,4472.2,1.4912]
[1755415512580,1.24803,4472.3,4472.2,1.107]
[1755415512781,0.2421,4472.2,4471.6,0.5177]
[1755415512981,0.1628,4471.7,4471.6,0.9842]
[1755415513173,1.24803,4471.7,4471.6,0.9842]
[1755415513579,1.24803,4471.7,4471.6,1.4912]
[1755415514483,1.24810301,4471.7,4471.6,1.4912]
[1755415515580,1.00600301,4471.7,4471.4,0.8912]
[1755415515881,1.00600301,4471.7,4471.3,3.2078]
[1755415515882,1.24745631,4471.6,4471.5,1.4912]
[1755415517678,1.24742343,4471.6,4471.5,1.4912]
[1755415517878,1.00532343,4471.6,4471.5,1.4912]
[1755415518080,1.26072343,4471.6,4471.5,1.4912]
[1755415518277,1.00532343,4471.6,4471.5,1.4912]
[1755415519483,1.00532343,4471.6,4471.5,1.4177]
[1755415519683,1.26068641,4471.6,4471.5,1.4177]
[1755415520078,1.00528641,4471.6,4471.2,0.2422]
[1755415520279,0.1602,4471.3,4471.2,1.4177]
[1755415520480,0.35492301,4471.3,4471.2,1.4177]
[1755415520678,1.00267035,4471.3,4471.2,1.4177]
[1755415521186,1.25807035,4471.3,4471.2,1.4177]
[1755415523089,1.25807035,4471.3,4471.2,1.0463]
[1755415523385,1.25807035,4471.3,4471.2,0.6462]
[1755415523584,1.25807035,4471.3,4471.2,0.886]
[1755415523781,1.25504855,4471.3,4471.2,0.886]
[1755415524190,1.25501208,4471.3,4471.2,0.886]
[1755415524687,1.25501208,4471.3,4471.2,1.2574]
[1755415525089,1.25501208,4471.3,4470.6,0.8534]
[1755415525288,0.1602,4470.7,4470.6,1.4177]
[1755415526582,0.1602,4470.7,4470.6,1.0463]
[1755415526784,0.2554,4470.6,4470.2,0.4043]
[1755415526994,0.4156,4470.3,4470.2,0.8065]
[1755415527493,0.4156,4470.3,4470.2,1.4177]
[1755415527792,0.60714004,4470.3,4470.2,1.0463]
[1755415527992,1.25345011,4470.3,4470.2,1.0463]
[1755415528195,1.25345011,4470.3,4470.2,1.4177]
[1755415529097,1.06191007,4470.3,4470.2,1.4177]
[1755415529393,0.60696666,4470.3,4470.2,1.4177]
[1755415529787,0.1602,4469.7,4469.6,1.0137]
[1755415530093,0.1602,4469.7,4469.6,1.4177]
[1755415530289,0.2554,4470.0,4469.6,0.5643]
[1755415530490,0.4156,4470.0,4469.9,1.4177]
[1755415531093,0.1602,4470.0,4469.9,1.4177]
[1755415531394,0.4156,4470.0,4469.5,0.2422]
[1755415531594,0.1602,4469.7,4469.6,1.1755]
[1755415531794,0.4156,4469.7,4469.6,1.4177]
[1755415531994,0.4156,4469.7,4469.6,0.7239]
[1755415532395,0.1602,4469.5,4469.4,0.482]
[1755415532593,0.1602,4469.5,4469.4,1.1755]
[1755415533095,0.1602,4469.5,4469.4,1.4177]
[1755415533284,3.2078,4469.9,4469.8,0.5643]
[1755415533484,3.2078,4469.9,4469.8,1.4177]
[1755415533686,3.368,4470.4,4470.3,1.2574]
[1755415533890,3.368,4470.4,4470.3,1.4177]
[1755415539497,3.2078,4470.4,4470.3,1.4177]
[1755415546393,0.2554,4470.9,4470.4,0.2398]
[1755415546600,3.2078,4471.2,4470.8,1.1755]
[1755415546902,1.25345664,4471.1,4471.0,1.4177]
[1755415548002,0.1602,4471.1,4471.0,1.4177]
[1755415550304,0.4195,4471.1,4471.0,1.4177]
[1755415551003,0.4195,4471.1,4470.5,0.6083]
[1755415551203,0.4195,4471.1,4470.6,0.2413]
[1755415551404,0.1696,4470.8,4470.7,1.1991]
[1755415551606,0.4289,4470.8,4470.7,1.4404]
[1755415551804,0.1696,4470.8,4470.7,1.4404]
[1755415558305,0.1696,4470.8,4470.7,1.0766]
[1755415558499,0.4289,4470.8,4470.7,1.0766]
[1755415558706,0.4289,4470.8,4470.7,1.4404]
[1755415561206,0.1696,4470.8,4470.7,1.4404]
[1755415563806,0.4289,4470.8,4470.7,1.4404]
[1755415564711,0.4289,4470.8,4470.7,0.2573]
[1755415565006,0.4289,4470.8,4470.7,0.4986]
[1755415565210,0.4289,4470.8,4470.7,0.7431]
[1755415565514,0.1696,4470.4,4470.3,0.5908]
[1755415565721,0.1696,4470.4,4470.3,1.4404]
[1755415566012,0.2593,4470.7,4470.3,0.5908]
[1755415566314,0.1696,4470.5,4470.4,1.4404]
[1755415566816,3.2078,4471.2,4470.5,0.8496]
[1755415567011,1.00911047,4471.1,4471.0,0.5908]
[1755415567216,1.16961047,4471.1,4471.0,1.4404]
[1755415568414,1.16965651,4471.1,4471.0,1.4404]
[1755415569011,1.16966333,4471.1,4471.0,1.4404]
[1755415570212,0.83956333,4471.1,4471.0,1.4404]
[1755415570407,1.00916333,4471.1,4471.0,0.6617]
[1755415570609,1.16966333,4471.1,4471.0,0.903]
[1755415570809,1.16966333,4471.1,4471.0,1.4404]
[1755415571013,1.16966333,4471.1,4471.0,1.0766]
[1755415571508,1.16979414,4471.1,4471.0,1.4404]
[1755415572413,1.00929414,4471.1,4471.0,1.4404]
[1755415575616,1.16979414,4471.1,4471.0,1.4404]
[1755415575919,1.16979414,4471.1,4471.0,0.2445]
[1755415576118,1.16979414,4471.1,4470.5,0.3638]
[1755415576119,0.1605,4471.0,4470.7,0.4858]
[1755415576319,0.3301,4470.8,4470.7,0.8496]
[1755415576619,1.16979414,4470.8,4470.7,1.0232]
[1755415576819,1.00929414,4470.8,4470.7,1.4404]
[1755415577415,1.00947093,4470.8,4470.7,1.4404]
[1755415577623,1.00946859,4470.8,4470.7,1.4404]
[1755415578021,1.00946861,4470.8,4470.7,1.4404]
[1755415579919,1.00944753,4470.8,4470.7,1.4404]
[1755415580318,1.00945197,4470.8,4470.7,1.4404]
[1755415580521,1.17075197,4470.8,4470.7,1.4404]
[1755415580719,1.17075197,4470.8,4470.3,0.2559]
[1755415580913,0.1641,4470.4,4470.3,1.4729]
[1755415581117,1.16525197,4470.4,4470.3,1.4729]
[1755415582822,1.16535197,4470.4,4470.3,0.2559]
[1755415583023,1.16535197,4470.4,4470.3,0.5152]
[1755415583421,1.16535197,4470.4,4470.3,1.4729]
[1755415584017,1.00395197,4470.4,4470.3,1.4729]
[1755415585424,1.00395197,4470.4,4469.6,0.6283]
[1755415585615,0.1641,4469.7,4469.6,1.4729]
[1755415587022,4.37669653,4469.7,4469.6,1.4729]
[1755415587328,4.37669896,4469.7,4469.6,1.4729]
[1755415588222,3.72862962,4469.7,4469.6,1.4729]
[1755415589027,3.56722962,4469.7,4469.6,1.4729]
[1755415589328,4.21477779,4469.7,4469.6,1.4729]
[1755415592331,3.56722962,4469.7,4469.6,1.4729]
[1755415592928,3.56687397,4469.7,4469.6,1.4729]
[1755415594130,3.56687397,4469.7,4469.6,0.9317]
[1755415594333,4.21409012,4469.7,4469.6,1.4729]
[1755415595228,3.56687397,4469.7,4469.6,1.4729]
[1755415595931,3.3719,4469.7,4469.6,1.4729]
[1755415596130,3.56679707,4469.7,4469.6,1.4729]
[1755415596532,3.56677946,4469.7,4469.6,1.4729]
[1755415597928,4.37522888,4469.7,4469.6,1.1005]
[1755415598536,4.21382888,4469.7,4468.8,0.6724]
[1755415598737,0.3255,4469.0,4468.9,0.5412]
[1755415598935,0.1641,4469.0,4468.9,0.9577]
[1755415599237,0.1614,4468.9,4468.0,0.6317]
[1755415599440,3.3719,4468.5,4468.4,1.1005]
[1755415599638,3.3719,4468.5,4468.4,1.4729]
[1755415599837,3.3719,4468.5,4468.4,0.5853]
[1755415600038,3.3719,4468.5,4468.4,1.4729]
[1755415601052,3.5333,4468.5,4468.4,1.0504]
[1755415601344,3.5333,4468.5,4468.4,1.3097]
[1755415601536,3.3719,4468.5,4468.4,1.4729]
[1755415608147,3.5329,4468.5,4468.4,1.4729]
[1755415608942,3.3719,4468.5,4468.4,1.4729]
[1755415609838,3.3719,4468.5,4467.5,0.0223]
[1755415609839,0.161,4468.4,4468.2,0.2618]
[1755415610046,0.171,4468.0,4467.9,0.9067]
[1755415610249,3.5398,4468.0,4467.9,1.4998]
[1755415610650,3.3788,4468.0,4467.9,1.4998]
[1755415610846,3.3788,4468.0,4466.9,3.2301]
[1755415611047,3.3788,4468.0,4467.0,0.511]
[1755415611246,3.3788,4468.0,4467.9,0.5931]
[1755415611448,3.5398,4468.0,4467.9,1.4998]
[1755415614252,3.7340366,4468.0,4467.9,1.4998]
[1755415614554,3.2078,4468.6,4467.9,0.5931]
[1755415614744,3.2078,4468.6,4468.4,0.5931]
[1755415614745,0.84019331,4468.5,4468.4,0.5931]
[1755415614951,0.84019618,4468.5,4468.4,1.4998]
[1755415615250,1.01119618,4468.5,4468.4,1.4998]
[1755415620155,1.01119618,4468.5,4468.4,1.1041]
[1755415620360,1.17219618,4468.5,4468.4,1.4998]
[1755415620556,0.84019618,4468.5,4468.4,1.4998]
[1755415620958,0.19419853,4468.5,4468.4,1.4998]
[1755415621262,0.84076056,4468.5,4468.4,1.4998]
[1755415621764,1.01176056,4468.5,4468.4,1.4998]
[1755415622359,1.0120526,4468.5,4468.4,1.4998]
[1755415624866,1.1730526,4468.5,4468.4,0.2618]
[1755415625461,0.161,4468.4,4467.7,0.9067]
[1755415625667,0.171,4467.8,4467.7,1.4998]
[1755415625964,1.0120526,4467.8,4467.7,1.4998]
[1755415626357,1.0120526,4467.8,4466.1,0.54824792]
[1755415626358,0.161,4467.7,4467.0,0.3957]
[1755415626557,0.171,4467.2,4467.1,0.5931]
[1755415626758,1.0120526,4467.2,4467.1,0.9888]
[1755415627158,1.0120526,4467.2,4467.1,0.5931]
[1755415627367,1.1730526,4467.2,4467.1,1.4998]
[1755415628069,1.0120526,4467.2,4466.3,0.6449]
[1755415628266,3.3788,4466.5,4466.4,1.4998]
[1755415628461,4.0488526,4466.5,4466.4,1.4998]
[1755415631176,4.02536203,4466.5,4466.4,1.4998]
[1755415631570,4.38076303,4466.5,4466.4,0.511]
[1755415633373,4.38076303,4466.5,4466.4,1.1041]
[1755415633573,4.38076303,4466.5,4466.4,1.4998]
[1755415634273,4.21976303,4466.5,4466.4,1.4998]
[1755415638677,4.04876303,4466.5,4466.4,1.4998]
[1755415638977,4.21236303,4466.5,4466.4,1.4998]
[1755415639874,0.1636,4466.3,4466.2,1.2181]
[1755415640073,1.00456303,4466.3,4466.2,0.8422]
[1755415640274,0.97226203,4466.3,4466.2,0.8422]
[1755415640671,0.97226203,4466.3,4466.2,1.4818]
[1755415640873,1.16629519,4466.3,4466.2,1.4818]
[1755415641079,1.00419519,4466.3,4466.1,0.10075792]
[1755415641275,0.81016203,4466.2,4466.1,1.07275792]
[1755415641779,0.97226203,4466.2,4466.1,1.58255792]
[1755415645580,0.96841323,4466.2,4466.1,1.58255792]
[1755415645983,1.16315955,4466.2,4466.1,1.20665792]
[1755415646280,1.16315955,4466.2,4466.1,0.61055792]
[1755415646474,1.16315955,4466.2,4466.1,0.98645792]
[1755415646670,1.16315955,4466.2,4466.1,1.58255792]
[1755415648077,1.16315955,4466.2,4466.1,0.76855792]
[1755415648281,1.16315955,4466.2,4466.1,0.34685792]
[1755415648781,1.16315955,4466.2,4466.1,0.61055792]
[1755415649382,1.16315955,4466.2,4466.1,0.98645792]
[1755415649777,0.96841323,4466.2,4466.1,1.40825792]
[1755415649978,1.16324254,4466.2,4466.1,1.58255792]
[1755415651178,0.83754254,4466.2,4466.1,1.60485792]
[1755415651487,3.2078,4466.5,4466.1,0.71915792]
[1755415651784,3.2078,4466.5,4466.4,1.4818]
[1755415655489,3.5679,4466.5,4466.4,1.4818]
[1755415656790,3.2078,4466.5,4466.4,1.4818]
[1755415656995,3.5679,4466.5,4466.4,1.4818]
[1755415657791,4.1491,4466.5,4466.4,1.4818]
[1755415657988,4.3914,4466.5,4466.4,1.4818]
[1755415659096,4.1491,4466.5,4466.4,1.4818]
[1755415659295,3.9855,4466.5,4466.4,1.4818]
[1755415659590,3.8163,4466.5,4466.4,1.4818]
[1755415662495,3.2078,4466.5,4466.4,1.4818]
[1755415663492,4.0463492,4466.5,4466.4,1.4818]
[1755415666104,0.8385492,4466.5,4466.4,1.4818]
[1755415666295,0.19302515,4466.5,4466.4,1.4818]
[1755415666700,0.8385182,4466.5,4466.4,1.4818]
[1755415667593,1.8014182,4466.5,4466.4,1.4818]
[1755415667798,2.0417182,4466.5,4466.4,1.4818]
[1755415668199,1.84869305,4466.5,4466.4,1.4818]
[1755415668501,2.04167156,4466.5,4466.4,1.4818]
[1755415671899,1.62947156,4466.5,4466.4,1.4818]
[1755415672100,0.83847156,4466.5,4466.4,1.4818]
[1755415672694,3.2078,4466.6,4466.4,1.4818]
[1755415672897,3.2078,4466.6,4466.4,0.5961]
[1755415673102,3.2078,4466.6,4466.5,1.4881]
[1755415673298,3.40317742,4466.6,4466.5,1.4881]
[1755415674203,3.2078,4466.6,4466.5,1.4881]
[1755415674404,3.40316754,4466.6,4466.5,1.4881]
[1755415674601,4.62708747,4466.6,4466.5,1.4881]
[1755415674904,5.25158747,4466.6,4466.5,1.4881]
[1755415675104,5.41308747,4466.6,4466.5,0.5074]
[1755415675506,5.25158747,4466.6,4466.5,1.4881]
[1755415675708,5.25158664,4466.6,4466.5,1.4881]
[1755415677401,5.25163478,4466.6,4466.5,1.4881]
[1755415679408,4.04843478,4466.6,4466.5,1.4881]
[1755415680509,4.04858279,4466.6,4466.5,1.4881]
[1755415680704,3.2078,4467.2,4466.5,1.5104]
[1755415681008,0.1955778,4467.1,4467.0,1.4881]
[1755415681712,3.592,4467.7,4467.0,0.585]
[1755415681914,4.1707,4467.7,4467.6,0.585]
[1755415682128,4.662,4467.7,4467.6,1.4881]
[1755415682618,4.1707,4467.7,4467.6,1.4881]
[1755415683509,3.2078,4467.7,4467.6,1.4881]
[1755415684716,4.662,4467.7,4467.6,1.4881]
[1755415686021,4.662,4467.7,4467.6,1.0924]
[1755415686418,4.662,4467.7,4467.6,1.4881]
[1755415687520,4.2504,4467.7,4467.6,1.4881]
[1755415687923,4.662,4467.7,4467.6,1.4881]
[1755415689826,4.411,4467.7,4467.6,1.4881]
[1755415693626,4.662,4467.7,4467.6,1.4881]
[1755415699130,4.662,4467.7,4466.6,0.0223]
[1755415699335,0.8926,4467.6,4466.6,0.8812]
[1755415699731,1.4806,4466.8,4466.7,1.446]
[1755415699934,1.4806,4466.8,4466.7,1.0303]
[1755415700432,1.4806,4466.8,4466.7,1.2851]
[1755415701337,1.4806,4466.8,4466.7,1.446]
[1755415703234,1.67374833,4466.8,4466.7,1.446]
[1755415703440,1.4806,4466.8,4466.7,1.446]
[1755415706534,0.3741,4466.7,4466.2,0.4947]
[1755415706734,1.4806,4466.3,4466.2,1.446]
[1755415706935,1.2186,4466.3,4466.2,1.446]
[1755415707235,1.4806,4466.3,4466.2,1.446]
[1755415708940,1.2186,4466.3,4466.2,1.446]
[1755415709944,0.6306,4466.6,4466.2,0.5648]
[1755415710244,1.047,4466.6,4466.5,1.0595]
[1755415710543,1.047,4466.6,4466.5,1.446]
[1755415711040,1.2186,4466.6,4466.5,1.446]
[1755415713141,1.4806,4466.6,4466.5,1.446]
[1755415726243,3.2078,4467.1,4466.6,0.8812]
[1755415726448,3.2078,4467.1,4467.0,1.446]
[1755415726644,4.04400868,4467.1,4467.0,1.446]
[1755415726948,5.09100868,4467.1,4467.0,1.446]
[1755415727249,5.52460868,4467.1,4467.0,1.446]
[1755415731348,5.33118795,4467.1,4467.0,1.446]
[1755415731953,0.6454,4467.0,4466.2,0.44747]
[1755415732153,1.49298795,4466.9,4466.8,0.5736]
[1755415732348,2.13838795,4466.9,4466.8,1.4479]
[1755415733656,3.2078,4467.1,4466.8,0.5736]
[1755415733855,3.6001,4467.1,4467.0,1.4479]
[1755415734055,4.84807168,4467.1,4467.0,1.4479]
[1755415734349,5.34687168,4467.1,4467.0,1.4479]
[1755415734556,4.84807168,4467.1,4467.0,1.4479]
[1755415735058,5.10117168,4467.1,4467.0,1.4479]
[1755415735452,4.11147168,4467.1,4467.0,1.4479]
[1755415736146,3.85127168,4467.1,4467.0,1.4479]
[1755415736352,3.2078,4467.1,4467.0,1.4479]
[1755415738846,3.6001,4467.1,4467.0,1.4479]
[1755415739054,4.4577,4467.1,4467.0,1.4479]